{"text_format":"1","workbook":"xlsx","n_sheets":31,"sheets":["Oppsummering","K (1)","K (2)","K (3)","K (4)","K (5)","K (6)","K (7)","K (8)","K (9)","K (10)","K (11)","K (12)","K (13)","K (14)","K (15)","K (16)","K (17)","K (18)","K (19)","K (20)","K (21)","K (22)","K (23)","K (24)","K (25)","K (26)","K (27)","K (28)","K (29)","K (30)"],"not_rendered":{"charts":0,"images":0,"macros":1,"external_links":0,"defined_names":0,"comments":0,"pivot_tables":0},"unopened":[],"bounds":{"document_bytes":16777216,"sheet_cells":100000,"rows_first":2000,"rows_last":500,"rows_between":2000,"halvings":0,"cell_chars":16384,"cell_head_chars":4096},"cells_cut":0,"cells_raw":0,"read":"whole","date_system":"1900"}

{"sheet":"Oppsummering","index":0,"n_rows":31,"n_cols":4,"rows_kept":31,"cut":false,"hidden":false,"merged":[]}
[null,"Kand. nr","Poeng","Eget karakterforslag"]
["K(1)",{"$f":"'K (1)'!$B$6","v":0},{"$f":"'K (1)'!$AC$7","v":0},{"$f":"'K (1)'!$N$13","v":0}]
["K(2)",{"$f":"'K (2)'!$B$6","v":0},{"$f":"'K (2)'!$AC$7","v":0},{"$f":"'K (2)'!$N$13","v":0}]
["K(3)",{"$f":"'K (3)'!$B$6","v":0},{"$f":"'K (3)'!$AC$7","v":0},{"$f":"'K (3)'!$N$13","v":0}]
["K(4)",{"$f":"'K (4)'!$B$6","v":0},{"$f":"'K (4)'!$AC$7","v":0},{"$f":"'K (4)'!$N$13","v":0}]
["K(5)",{"$f":"'K (5)'!$B$6","v":0},{"$f":"'K (5)'!$AC$7","v":0},{"$f":"'K (5)'!$N$13","v":0}]
["K(6)",{"$f":"'K (6)'!$B$6","v":0},{"$f":"'K (6)'!$AC$7","v":0},{"$f":"'K (6)'!$N$13","v":0}]
["K(7)",{"$f":"'K (7)'!$B$6","v":0},{"$f":"'K (7)'!$AC$7","v":0},{"$f":"'K (7)'!$N$13","v":0}]
["K(8)",{"$f":"'K (8)'!$B$6","v":0},{"$f":"'K (8)'!$AC$7","v":0},{"$f":"'K (8)'!$N$13","v":0}]
["K(9)",{"$f":"'K (9)'!$B$6","v":0},{"$f":"'K (9)'!$AC$7","v":0},{"$f":"'K (9)'!$N$13","v":0}]
["K(10)",{"$f":"'K (10)'!$B$6","v":0},{"$f":"'K (10)'!$AC$7","v":0},{"$f":"'K (10)'!$N$13","v":0}]
["K(11)",{"$f":"'K (11)'!$B$6","v":0},{"$f":"'K (11)'!$AC$7","v":0},{"$f":"'K (11)'!$N$13","v":0}]
["K(12)",{"$f":"'K (12)'!$B$6","v":0},{"$f":"'K (12)'!$AC$7","v":0},{"$f":"'K (12)'!$N$13","v":0}]
["K(13)",{"$f":"'K (13)'!$B$6","v":0},{"$f":"'K (13)'!$AC$7","v":0},{"$f":"'K (13)'!$N$13","v":0}]
["K(14)",{"$f":"'K (14)'!$B$6","v":0},{"$f":"'K (14)'!$AC$7","v":0},{"$f":"'K (14)'!$N$13","v":0}]
["K(15)",{"$f":"'K (15)'!$B$6","v":0},{"$f":"'K (15)'!$AC$7","v":0},{"$f":"'K (15)'!$N$13","v":0}]
["K(16)",{"$f":"'K (16)'!$B$6","v":0},{"$f":"'K (16)'!$AC$7","v":0},{"$f":"'K (16)'!$N$13","v":0}]
["K(17)",{"$f":"'K (17)'!$B$6","v":0},{"$f":"'K (17)'!$AC$7","v":0},{"$f":"'K (17)'!$N$13","v":0}]
["K(18)",{"$f":"'K (18)'!$B$6","v":0},{"$f":"'K (18)'!$AC$7","v":0},{"$f":"'K (18)'!$N$13","v":0}]
["K(19)",{"$f":"'K (19)'!$B$6","v":0},{"$f":"'K (19)'!$AC$7","v":0},{"$f":"'K (19)'!$N$13","v":0}]
["K(20)",{"$f":"'K (20)'!$B$6","v":0},{"$f":"'K (20)'!$AC$7","v":0},{"$f":"'K (20)'!$N$13","v":0}]
["K(21)",{"$f":"'K (21)'!$B$6","v":0},{"$f":"'K (21)'!$AC$7","v":0},{"$f":"'K (21)'!$N$13","v":0}]
["K(22)",{"$f":"'K (22)'!$B$6","v":0},{"$f":"'K (22)'!$AC$7","v":0},{"$f":"'K (22)'!$N$13","v":0}]
["K(23)",{"$f":"'K (23)'!$B$6","v":0},{"$f":"'K (23)'!$AC$7","v":0},{"$f":"'K (23)'!$N$13","v":0}]
["K(24)",{"$f":"'K (24)'!$B$6","v":0},{"$f":"'K (24)'!$AC$7","v":0},{"$f":"'K (24)'!$N$13","v":0}]
["K(25)",{"$f":"'K (25)'!$B$6","v":0},{"$f":"'K (25)'!$AC$7","v":0},{"$f":"'K (25)'!$N$13","v":0}]
["K(26)",{"$f":"'K (26)'!$B$6","v":0},{"$f":"'K (26)'!$AC$7","v":0},{"$f":"'K (26)'!$N$13","v":0}]
["K(27)",{"$f":"'K (27)'!$B$6","v":0},{"$f":"'K (27)'!$AC$7","v":0},{"$f":"'K (27)'!$N$13","v":0}]
["K(28)",{"$f":"'K (28)'!$B$6","v":0},{"$f":"'K (28)'!$AC$7","v":0},{"$f":"'K (28)'!$N$13","v":0}]
["K(29)",{"$f":"'K (29)'!$B$6","v":0},{"$f":"'K (29)'!$AC$7","v":0},{"$f":"'K (29)'!$N$13","v":0}]
["K(30)",{"$f":"'K (30)'!$B$6","v":0},{"$f":"'K (30)'!$AC$7","v":0},{"$f":"'K (30)'!$N$13","v":0}]

{"sheet":"K (1)","index":1,"n_rows":16,"n_cols":29,"rows_kept":16,"cut":false,"hidden":false,"merged":[[13,1,13,3],[14,1,14,3],[15,3,20,28],[4,2,6,2],[0,1,0,24],[0,25,0,28],[11,1,11,3],[12,1,12,3]]}
[null,"VURDERINGSSKJEMA for sentralt gitt skriftlig eksamen i REA3026 Matematikk S1",null,null,null,null,null,null,null,null,null,null,null,null,null,null,null,null,null,null,null,null,null,null,null,"Våren 2015"]
[]
[null,"Fagkode:","REA3026",null,"Fagnavn:",null,"Matematikk S1",null,null,null,"Skole:",null,null,null,null,null,null,null,"Gruppe:",null,null,null,null,null,"Sensor:"]
[]
[null,"Kand.nr:","Del 1","Oppgave","1a","1b","2a","2b","3a","3b","4a","4b","4c","4d","5a","5b","6a","6b","7a","7b","7c","8a","8b",9,null,null,null,"SUM \nDEL 1"]
[null,null,null,"Poeng*",1,2,1,2,2,2,1,2,2,2,2,2,1,2,2,2,2,2,2,2,null,null,null,{"$f":"SUM(E6:Y6)","v":36},"TOTALT"]
[null,null,null,"Sensors\npoeng",null,null,null,null,null,null,null,null,null,null,null,null,null,null,null,null,null,null,null,null,null,null,null,{"$f":"SUM(E7:X7)","v":0},{"$f":"AB7+AB10","v":0}]
[null,null,"Del 2","Oppgave","1a","1b","1c","2a","2b","2c","3a","3b","3c","4a","4b","4c",null,null,null,null,null,null,null,null,null,null,null,"SUM \nDEL 2","AV"]
[null,null,null,"Poeng*",2,2,2,2,2,2,2,2,2,2,2,2,null,null,null,null,null,null,null,null,null,null,null,{"$f":"SUM(E9:Y9)","v":24},{"$f":"AB6+AB9","v":60}]
[null,null,null,"Sensors\npoeng",null,null,null,null,null,null,null,null,null,null,null,null,null,null,null,null,null,null,null,null,null,null,null,{"$f":"SUM(E10:P10)","v":0}]
[null,"SAMLET VURDERING (Jfr. Eksamensveiledning 2015 med kjennetegn på måloppnåelse)"]
[null,"Kompetanse",null,null,2,"3/4","5/6",null,"Karakterforslag"]
[null,"Begreper/ferdigheter",null,null,null,null,null,null,"Eget karakterforslag"]
[null,"Problemløsning",null,null,null,null,null,null,"Medsensors forslag"]
[null,"Kommunikasjon",null,null,null,null,null,null,"Endelig karakter"]
[null,"Kommentarer:"]

{"sheet":"K (2)","index":2,"n_rows":16,"n_cols":29,"rows_kept":16,"cut":false,"hidden":false,"merged":[[14,1,14,3],[15,3,20,28],[0,1,0,24],[0,25,0,28],[4,2,6,2],[11,1,11,3],[12,1,12,3],[13,1,13,3]]}
[null,"VURDERINGSSKJEMA for sentralt gitt skriftlig eksamen i REA3026 Matematikk S1",null,null,null,null,null,null,null,null,null,null,null,null,null,null,null,null,null,null,null,null,null,null,null,"Våren 2015"]
[]
[null,"Fagkode:","REA3026",null,"Fagnavn:",null,"Matematikk S1",null,null,null,"Skole:",null,null,null,null,null,null,null,"Gruppe:",null,null,null,null,null,"Sensor:"]
[]
[null,"Kand.nr:","Del 1","Oppgave","1a","1b","2a","2b","3a","3b","4a","4b","4c","4d","5a","5b","6a","6b","7a","7b","7c","8a","8b",9,null,null,null,"SUM \nDEL 1"]
[null,null,null,"Poeng*",1,2,1,2,2,2,1,2,2,2,2,2,1,2,2,2,2,2,2,2,null,null,null,{"$f":"SUM(E6:Y6)","v":36},"TOTALT"]
[null,null,null,"Sensors\npoeng",null,null,null,null,null,null,null,null,null,null,null,null,null,null,null,null,null,null,null,null,null,null,null,{"$f":"SUM(E7:X7)","v":0},{"$f":"AB7+AB10","v":0}]
[null,null,"Del 2","Oppgave","1a","1b","1c","2a","2b","2c","3a","3b","3c","4a","4b","4c",null,null,null,null,null,null,null,null,null,null,null,"SUM \nDEL 2","AV"]
[null,null,null,"Poeng*",2,2,2,2,2,2,2,2,2,2,2,2,null,null,null,null,null,null,null,null,null,null,null,{"$f":"SUM(E9:Y9)","v":24},{"$f":"AB6+AB9","v":60}]
[null,null,null,"Sensors\npoeng",null,null,null,null,null,null,null,null,null,null,null,null,null,null,null,null,null,null,null,null,null,null,null,{"$f":"SUM(E10:P10)","v":0}]
[null,"SAMLET VURDERING (Jfr. Eksamensveiledning 2015 med kjennetegn på måloppnåelse)"]
[null,"Kompetanse",null,null,2,"3/4","5/6",null,"Karakterforslag"]
[null,"Begreper/ferdigheter",null,null,null,null,null,null,"Eget karakterforslag"]
[null,"Problemløsning",null,null,null,null,null,null,"Medsensors forslag"]
[null,"Kommunikasjon",null,null,null,null,null,null,"Endelig karakter"]
[null,"Kommentarer:"]

{"sheet":"K (3)","index":3,"n_rows":16,"n_cols":29,"rows_kept":16,"cut":false,"hidden":false,"merged":[[14,1,14,3],[15,3,20,28],[0,1,0,24],[0,25,0,28],[4,2,6,2],[11,1,11,3],[12,1,12,3],[13,1,13,3]]}
[null,"VURDERINGSSKJEMA for sentralt gitt skriftlig eksamen i REA3026 Matematikk S1",null,null,null,null,null,null,null,null,null,null,null,null,null,null,null,null,null,null,null,null,null,null,null,"Våren 2015"]
[]
[null,"Fagkode:","REA3026",null,"Fagnavn:",null,"Matematikk S1",null,null,null,"Skole:",null,null,null,null,null,null,null,"Gruppe:",null,null,null,null,null,"Sensor:"]
[]
[null,"Kand.nr:","Del 1","Oppgave","1a","1b","2a","2b","3a","3b","4a","4b","4c","4d","5a","5b","6a","6b","7a","7b","7c","8a","8b",9,null,null,null,"SUM \nDEL 1"]
[null,null,null,"Poeng*",1,2,1,2,2,2,1,2,2,2,2,2,1,2,2,2,2,2,2,2,null,null,null,{"$f":"SUM(E6:Y6)","v":36},"TOTALT"]
[null,null,null,"Sensors\npoeng",null,null,null,null,null,null,null,null,null,null,null,null,null,null,null,null,null,null,null,null,null,null,null,{"$f":"SUM(E7:X7)","v":0},{"$f":"AB7+AB10","v":0}]
[null,null,"Del 2","Oppgave","1a","1b","1c","2a","2b","2c","3a","3b","3c","4a","4b","4c",null,null,null,null,null,null,null,null,null,null,null,"SUM \nDEL 2","AV"]
[null,null,null,"Poeng*",2,2,2,2,2,2,2,2,2,2,2,2,null,null,null,null,null,null,null,null,null,null,null,{"$f":"SUM(E9:Y9)","v":24},{"$f":"AB6+AB9","v":60}]
[null,null,null,"Sensors\npoeng",null,null,null,null,null,null,null,null,null,null,null,null,null,null,null,null,null,null,null,null,null,null,null,{"$f":"SUM(E10:P10)","v":0}]
[null,"SAMLET VURDERING (Jfr. Eksamensveiledning 2015 med kjennetegn på måloppnåelse)"]
[null,"Kompetanse",null,null,2,"3/4","5/6",null,"Karakterforslag"]
[null,"Begreper/ferdigheter",null,null,null,null,null,null,"Eget karakterforslag"]
[null,"Problemløsning",null,null,null,null,null,null,"Medsensors forslag"]
[null,"Kommunikasjon",null,null,null,null,null,null,"Endelig karakter"]
[null,"Kommentarer:"]

{"sheet":"K (4)","index":4,"n_rows":16,"n_cols":29,"rows_kept":16,"cut":false,"hidden":false,"merged":[[14,1,14,3],[15,3,20,28],[0,1,0,24],[0,25,0,28],[4,2,6,2],[11,1,11,3],[12,1,12,3],[13,1,13,3]]}
[null,"VURDERINGSSKJEMA for sentralt gitt skriftlig eksamen i REA3026 Matematikk S1",null,null,null,null,null,null,null,null,null,null,null,null,null,null,null,null,null,null,null,null,null,null,null,"Våren 2015"]
[]
[null,"Fagkode:","REA3026",null,"Fagnavn:",null,"Matematikk S1",null,null,null,"Skole:",null,null,null,null,null,null,null,"Gruppe:",null,null,null,null,null,"Sensor:"]
[]
[null,"Kand.nr:","Del 1","Oppgave","1a","1b","2a","2b","3a","3b","4a","4b","4c","4d","5a","5b","6a","6b","7a","7b","7c","8a","8b",9,null,null,null,"SUM \nDEL 1"]
[null,null,null,"Poeng*",1,2,1,2,2,2,1,2,2,2,2,2,1,2,2,2,2,2,2,2,null,null,null,{"$f":"SUM(E6:Y6)","v":36},"TOTALT"]
[null,null,null,"Sensors\npoeng",null,null,null,null,null,null,null,null,null,null,null,null,null,null,null,null,null,null,null,null,null,null,null,{"$f":"SUM(E7:X7)","v":0},{"$f":"AB7+AB10","v":0}]
[null,null,"Del 2","Oppgave","1a","1b","1c","2a","2b","2c","3a","3b","3c","4a","4b","4c",null,null,null,null,null,null,null,null,null,null,null,"SUM \nDEL 2","AV"]
[null,null,null,"Poeng*",2,2,2,2,2,2,2,2,2,2,2,2,null,null,null,null,null,null,null,null,null,null,null,{"$f":"SUM(E9:Y9)","v":24},{"$f":"AB6+AB9","v":60}]
[null,null,null,"Sensors\npoeng",null,null,null,null,null,null,null,null,null,null,null,null,null,null,null,null,null,null,null,null,null,null,null,{"$f":"SUM(E10:P10)","v":0}]
[null,"SAMLET VURDERING (Jfr. Eksamensveiledning 2015 med kjennetegn på måloppnåelse)"]
[null,"Kompetanse",null,null,2,"3/4","5/6",null,"Karakterforslag"]
[null,"Begreper/ferdigheter",null,null,null,null,null,null,"Eget karakterforslag"]
[null,"Problemløsning",null,null,null,null,null,null,"Medsensors forslag"]
[null,"Kommunikasjon",null,null,null,null,null,null,"Endelig karakter"]
[null,"Kommentarer:"]

{"sheet":"K (5)","index":5,"n_rows":16,"n_cols":29,"rows_kept":16,"cut":false,"hidden":false,"merged":[[14,1,14,3],[15,3,20,28],[0,1,0,24],[0,25,0,28],[4,2,6,2],[11,1,11,3],[12,1,12,3],[13,1,13,3]]}
[null,"VURDERINGSSKJEMA for sentralt gitt skriftlig eksamen i REA3026 Matematikk S1",null,null,null,null,null,null,null,null,null,null,null,null,null,null,null,null,null,null,null,null,null,null,null,"Våren 2015"]
[]
[null,"Fagkode:","REA3026",null,"Fagnavn:",null,"Matematikk S1",null,null,null,"Skole:",null,null,null,null,null,null,null,"Gruppe:",null,null,null,null,null,"Sensor:"]
[]
[null,"Kand.nr:","Del 1","Oppgave","1a","1b","2a","2b","3a","3b","4a","4b","4c","4d","5a","5b","6a","6b","7a","7b","7c","8a","8b",9,null,null,null,"SUM \nDEL 1"]
[null,null,null,"Poeng*",1,2,1,2,2,2,1,2,2,2,2,2,1,2,2,2,2,2,2,2,null,null,null,{"$f":"SUM(E6:Y6)","v":36},"TOTALT"]
[null,null,null,"Sensors\npoeng",null,null,null,null,null,null,null,null,null,null,null,null,null,null,null,null,null,null,null,null,null,null,null,{"$f":"SUM(E7:X7)","v":0},{"$f":"AB7+AB10","v":0}]
[null,null,"Del 2","Oppgave","1a","1b","1c","2a","2b","2c","3a","3b","3c","4a","4b","4c",null,null,null,null,null,null,null,null,null,null,null,"SUM \nDEL 2","AV"]
[null,null,null,"Poeng*",2,2,2,2,2,2,2,2,2,2,2,2,null,null,null,null,null,null,null,null,null,null,null,{"$f":"SUM(E9:Y9)","v":24},{"$f":"AB6+AB9","v":60}]
[null,null,null,"Sensors\npoeng",null,null,null,null,null,null,null,null,null,null,null,null,null,null,null,null,null,null,null,null,null,null,null,{"$f":"SUM(E10:P10)","v":0}]
[null,"SAMLET VURDERING (Jfr. Eksamensveiledning 2015 med kjennetegn på måloppnåelse)"]
[null,"Kompetanse",null,null,2,"3/4","5/6",null,"Karakterforslag"]
[null,"Begreper/ferdigheter",null,null,null,null,null,null,"Eget karakterforslag"]
[null,"Problemløsning",null,null,null,null,null,null,"Medsensors forslag"]
[null,"Kommunikasjon",null,null,null,null,null,null,"Endelig karakter"]
[null,"Kommentarer:"]

{"sheet":"K (6)","index":6,"n_rows":16,"n_cols":29,"rows_kept":16,"cut":false,"hidden":false,"merged":[[14,1,14,3],[15,3,20,28],[0,1,0,24],[0,25,0,28],[4,2,6,2],[11,1,11,3],[12,1,12,3],[13,1,13,3]]}
[null,"VURDERINGSSKJEMA for sentralt gitt skriftlig eksamen i REA3026 Matematikk S1",null,null,null,null,null,null,null,null,null,null,null,null,null,null,null,null,null,null,null,null,null,null,null,"Våren 2015"]
[]
[null,"Fagkode:","REA3026",null,"Fagnavn:",null,"Matematikk S1",null,null,null,"Skole:",null,null,null,null,null,null,null,"Gruppe:",null,null,null,null,null,"Sensor:"]
[]
[null,"Kand.nr:","Del 1","Oppgave","1a","1b","2a","2b","3a","3b","4a","4b","4c","4d","5a","5b","6a","6b","7a","7b","7c","8a","8b",9,null,null,null,"SUM \nDEL 1"]
[null,null,null,"Poeng*",1,2,1,2,2,2,1,2,2,2,2,2,1,2,2,2,2,2,2,2,null,null,null,{"$f":"SUM(E6:Y6)","v":36},"TOTALT"]
[null,null,null,"Sensors\npoeng",null,null,null,null,null,null,null,null,null,null,null,null,null,null,null,null,null,null,null,null,null,null,null,{"$f":"SUM(E7:X7)","v":0},{"$f":"AB7+AB10","v":0}]
[null,null,"Del 2","Oppgave","1a","1b","1c","2a","2b","2c","3a","3b","3c","4a","4b","4c",null,null,null,null,null,null,null,null,null,null,null,"SUM \nDEL 2","AV"]
[null,null,null,"Poeng*",2,2,2,2,2,2,2,2,2,2,2,2,null,null,null,null,null,null,null,null,null,null,null,{"$f":"SUM(E9:Y9)","v":24},{"$f":"AB6+AB9","v":60}]
[null,null,null,"Sensors\npoeng",null,null,null,null,null,null,null,null,null,null,null,null,null,null,null,null,null,null,null,null,null,null,null,{"$f":"SUM(E10:P10)","v":0}]
[null,"SAMLET VURDERING (Jfr. Eksamensveiledning 2015 med kjennetegn på måloppnåelse)"]
[null,"Kompetanse",null,null,2,"3/4","5/6",null,"Karakterforslag"]
[null,"Begreper/ferdigheter",null,null,null,null,null,null,"Eget karakterforslag"]
[null,"Problemløsning",null,null,null,null,null,null,"Medsensors forslag"]
[null,"Kommunikasjon",null,null,null,null,null,null,"Endelig karakter"]
[null,"Kommentarer:"]

{"sheet":"K (7)","index":7,"n_rows":16,"n_cols":29,"rows_kept":16,"cut":false,"hidden":false,"merged":[[14,1,14,3],[15,3,20,28],[0,1,0,24],[0,25,0,28],[4,2,6,2],[11,1,11,3],[12,1,12,3],[13,1,13,3]]}
[null,"VURDERINGSSKJEMA for sentralt gitt skriftlig eksamen i REA3026 Matematikk S1",null,null,null,null,null,null,null,null,null,null,null,null,null,null,null,null,null,null,null,null,null,null,null,"Våren 2015"]
[]
[null,"Fagkode:","REA3026",null,"Fagnavn:",null,"Matematikk S1",null,null,null,"Skole:",null,null,null,null,null,null,null,"Gruppe:",null,null,null,null,null,"Sensor:"]
[]
[null,"Kand.nr:","Del 1","Oppgave","1a","1b","2a","2b","3a","3b","4a","4b","4c","4d","5a","5b","6a","6b","7a","7b","7c","8a","8b",9,null,null,null,"SUM \nDEL 1"]
[null,null,null,"Poeng*",1,2,1,2,2,2,1,2,2,2,2,2,1,2,2,2,2,2,2,2,null,null,null,{"$f":"SUM(E6:Y6)","v":36},"TOTALT"]
[null,null,null,"Sensors\npoeng",null,null,null,null,null,null,null,null,null,null,null,null,null,null,null,null,null,null,null,null,null,null,null,{"$f":"SUM(E7:X7)","v":0},{"$f":"AB7+AB10","v":0}]
[null,null,"Del 2","Oppgave","1a","1b","1c","2a","2b","2c","3a","3b","3c","4a","4b","4c",null,null,null,null,null,null,null,null,null,null,null,"SUM \nDEL 2","AV"]
[null,null,null,"Poeng*",2,2,2,2,2,2,2,2,2,2,2,2,null,null,null,null,null,null,null,null,null,null,null,{"$f":"SUM(E9:Y9)","v":24},{"$f":"AB6+AB9","v":60}]
[null,null,null,"Sensors\npoeng",null,null,null,null,null,null,null,null,null,null,null,null,null,null,null,null,null,null,null,null,null,null,null,{"$f":"SUM(E10:P10)","v":0}]
[null,"SAMLET VURDERING (Jfr. Eksamensveiledning 2015 med kjennetegn på måloppnåelse)"]
[null,"Kompetanse",null,null,2,"3/4","5/6",null,"Karakterforslag"]
[null,"Begreper/ferdigheter",null,null,null,null,null,null,"Eget karakterforslag"]
[null,"Problemløsning",null,null,null,null,null,null,"Medsensors forslag"]
[null,"Kommunikasjon",null,null,null,null,null,null,"Endelig karakter"]
[null,"Kommentarer:"]

{"sheet":"K (8)","index":8,"n_rows":16,"n_cols":29,"rows_kept":16,"cut":false,"hidden":false,"merged":[[14,1,14,3],[15,3,20,28],[0,1,0,24],[0,25,0,28],[4,2,6,2],[11,1,11,3],[12,1,12,3],[13,1,13,3]]}
[null,"VURDERINGSSKJEMA for sentralt gitt skriftlig eksamen i REA3026 Matematikk S1",null,null,null,null,null,null,null,null,null,null,null,null,null,null,null,null,null,null,null,null,null,null,null,"Våren 2015"]
[]
[null,"Fagkode:","REA3026",null,"Fagnavn:",null,"Matematikk S1",null,null,null,"Skole:",null,null,null,null,null,null,null,"Gruppe:",null,null,null,null,null,"Sensor:"]
[]
[null,"Kand.nr:","Del 1","Oppgave","1a","1b","2a","2b","3a","3b","4a","4b","4c","4d","5a","5b","6a","6b","7a","7b","7c","8a","8b",9,null,null,null,"SUM \nDEL 1"]
[null,null,null,"Poeng*",1,2,1,2,2,2,1,2,2,2,2,2,1,2,2,2,2,2,2,2,null,null,null,{"$f":"SUM(E6:Y6)","v":36},"TOTALT"]
[null,null,null,"Sensors\npoeng",null,null,null,null,null,null,null,null,null,null,null,null,null,null,null,null,null,null,null,null,null,null,null,{"$f":"SUM(E7:X7)","v":0},{"$f":"AB7+AB10","v":0}]
[null,null,"Del 2","Oppgave","1a","1b","1c","2a","2b","2c","3a","3b","3c","4a","4b","4c",null,null,null,null,null,null,null,null,null,null,null,"SUM \nDEL 2","AV"]
[null,null,null,"Poeng*",2,2,2,2,2,2,2,2,2,2,2,2,null,null,null,null,null,null,null,null,null,null,null,{"$f":"SUM(E9:Y9)","v":24},{"$f":"AB6+AB9","v":60}]
[null,null,null,"Sensors\npoeng",null,null,null,null,null,null,null,null,null,null,null,null,null,null,null,null,null,null,null,null,null,null,null,{"$f":"SUM(E10:P10)","v":0}]
[null,"SAMLET VURDERING (Jfr. Eksamensveiledning 2015 med kjennetegn på måloppnåelse)"]
[null,"Kompetanse",null,null,2,"3/4","5/6",null,"Karakterforslag"]
[null,"Begreper/ferdigheter",null,null,null,null,null,null,"Eget karakterforslag"]
[null,"Problemløsning",null,null,null,null,null,null,"Medsensors forslag"]
[null,"Kommunikasjon",null,null,null,null,null,null,"Endelig karakter"]
[null,"Kommentarer:"]

{"sheet":"K (9)","index":9,"n_rows":16,"n_cols":29,"rows_kept":16,"cut":false,"hidden":false,"merged":[[14,1,14,3],[15,3,20,28],[0,1,0,24],[0,25,0,28],[4,2,6,2],[11,1,11,3],[12,1,12,3],[13,1,13,3]]}
[null,"VURDERINGSSKJEMA for sentralt gitt skriftlig eksamen i REA3026 Matematikk S1",null,null,null,null,null,null,null,null,null,null,null,null,null,null,null,null,null,null,null,null,null,null,null,"Våren 2015"]
[]
[null,"Fagkode:","REA3026",null,"Fagnavn:",null,"Matematikk S1",null,null,null,"Skole:",null,null,null,null,null,null,null,"Gruppe:",null,null,null,null,null,"Sensor:"]
[]
[null,"Kand.nr:","Del 1","Oppgave","1a","1b","2a","2b","3a","3b","4a","4b","4c","4d","5a","5b","6a","6b","7a","7b","7c","8a","8b",9,null,null,null,"SUM \nDEL 1"]
[null,null,null,"Poeng*",1,2,1,2,2,2,1,2,2,2,2,2,1,2,2,2,2,2,2,2,null,null,null,{"$f":"SUM(E6:Y6)","v":36},"TOTALT"]
[null,null,null,"Sensors\npoeng",null,null,null,null,null,null,null,null,null,null,null,null,null,null,null,null,null,null,null,null,null,null,null,{"$f":"SUM(E7:X7)","v":0},{"$f":"AB7+AB10","v":0}]
[null,null,"Del 2","Oppgave","1a","1b","1c","2a","2b","2c","3a","3b","3c","4a","4b","4c",null,null,null,null,null,null,null,null,null,null,null,"SUM \nDEL 2","AV"]
[null,null,null,"Poeng*",2,2,2,2,2,2,2,2,2,2,2,2,null,null,null,null,null,null,null,null,null,null,null,{"$f":"SUM(E9:Y9)","v":24},{"$f":"AB6+AB9","v":60}]
[null,null,null,"Sensors\npoeng",null,null,null,null,null,null,null,null,null,null,null,null,null,null,null,null,null,null,null,null,null,null,null,{"$f":"SUM(E10:P10)","v":0}]
[null,"SAMLET VURDERING (Jfr. Eksamensveiledning 2015 med kjennetegn på måloppnåelse)"]
[null,"Kompetanse",null,null,2,"3/4","5/6",null,"Karakterforslag"]
[null,"Begreper/ferdigheter",null,null,null,null,null,null,"Eget karakterforslag"]
[null,"Problemløsning",null,null,null,null,null,null,"Medsensors forslag"]
[null,"Kommunikasjon",null,null,null,null,null,null,"Endelig karakter"]
[null,"Kommentarer:"]

{"sheet":"K (10)","index":10,"n_rows":16,"n_cols":29,"rows_kept":16,"cut":false,"hidden":false,"merged":[[14,1,14,3],[15,3,20,28],[0,1,0,24],[0,25,0,28],[4,2,6,2],[11,1,11,3],[12,1,12,3],[13,1,13,3]]}
[null,"VURDERINGSSKJEMA for sentralt gitt skriftlig eksamen i REA3026 Matematikk S1",null,null,null,null,null,null,null,null,null,null,null,null,null,null,null,null,null,null,null,null,null,null,null,"Våren 2015"]
[]
[null,"Fagkode:","REA3026",null,"Fagnavn:",null,"Matematikk S1",null,null,null,"Skole:",null,null,null,null,null,null,null,"Gruppe:",null,null,null,null,null,"Sensor:"]
[]
[null,"Kand.nr:","Del 1","Oppgave","1a","1b","2a","2b","3a","3b","4a","4b","4c","4d","5a","5b","6a","6b","7a","7b","7c","8a","8b",9,null,null,null,"SUM \nDEL 1"]
[null,null,null,"Poeng*",1,2,1,2,2,2,1,2,2,2,2,2,1,2,2,2,2,2,2,2,null,null,null,{"$f":"SUM(E6:Y6)","v":36},"TOTALT"]
[null,null,null,"Sensors\npoeng",null,null,null,null,null,null,null,null,null,null,null,null,null,null,null,null,null,null,null,null,null,null,null,{"$f":"SUM(E7:X7)","v":0},{"$f":"AB7+AB10","v":0}]
[null,null,"Del 2","Oppgave","1a","1b","1c","2a","2b","2c","3a","3b","3c","4a","4b","4c",null,null,null,null,null,null,null,null,null,null,null,"SUM \nDEL 2","AV"]
[null,null,null,"Poeng*",2,2,2,2,2,2,2,2,2,2,2,2,null,null,null,null,null,null,null,null,null,null,null,{"$f":"SUM(E9:Y9)","v":24},{"$f":"AB6+AB9","v":60}]
[null,null,null,"Sensors\npoeng",null,null,null,null,null,null,null,null,null,null,null,null,null,null,null,null,null,null,null,null,null,null,null,{"$f":"SUM(E10:P10)","v":0}]
[null,"SAMLET VURDERING (Jfr. Eksamensveiledning 2015 med kjennetegn på måloppnåelse)"]
[null,"Kompetanse",null,null,2,"3/4","5/6",null,"Karakterforslag"]
[null,"Begreper/ferdigheter",null,null,null,null,null,null,"Eget karakterforslag"]
[null,"Problemløsning",null,null,null,null,null,null,"Medsensors forslag"]
[null,"Kommunikasjon",null,null,null,null,null,null,"Endelig karakter"]
[null,"Kommentarer:"]

{"sheet":"K (11)","index":11,"n_rows":16,"n_cols":29,"rows_kept":16,"cut":false,"hidden":false,"merged":[[14,1,14,3],[15,3,20,28],[0,1,0,24],[0,25,0,28],[4,2,6,2],[11,1,11,3],[12,1,12,3],[13,1,13,3]]}
[null,"VURDERINGSSKJEMA for sentralt gitt skriftlig eksamen i REA3026 Matematikk S1",null,null,null,null,null,null,null,null,null,null,null,null,null,null,null,null,null,null,null,null,null,null,null,"Våren 2015"]
[]
[null,"Fagkode:","REA3026",null,"Fagnavn:",null,"Matematikk S1",null,null,null,"Skole:",null,null,null,null,null,null,null,"Gruppe:",null,null,null,null,null,"Sensor:"]
[]
[null,"Kand.nr:","Del 1","Oppgave","1a","1b","2a","2b","3a","3b","4a","4b","4c","4d","5a","5b","6a","6b","7a","7b","7c","8a","8b",9,null,null,null,"SUM \nDEL 1"]
[null,null,null,"Poeng*",1,2,1,2,2,2,1,2,2,2,2,2,1,2,2,2,2,2,2,2,null,null,null,{"$f":"SUM(E6:Y6)","v":36},"TOTALT"]
[null,null,null,"Sensors\npoeng",null,null,null,null,null,null,null,null,null,null,null,null,null,null,null,null,null,null,null,null,null,null,null,{"$f":"SUM(E7:X7)","v":0},{"$f":"AB7+AB10","v":0}]
[null,null,"Del 2","Oppgave","1a","1b","1c","2a","2b","2c","3a","3b","3c","4a","4b","4c",null,null,null,null,null,null,null,null,null,null,null,"SUM \nDEL 2","AV"]
[null,null,null,"Poeng*",2,2,2,2,2,2,2,2,2,2,2,2,null,null,null,null,null,null,null,null,null,null,null,{"$f":"SUM(E9:Y9)","v":24},{"$f":"AB6+AB9","v":60}]
[null,null,null,"Sensors\npoeng",null,null,null,null,null,null,null,null,null,null,null,null,null,null,null,null,null,null,null,null,null,null,null,{"$f":"SUM(E10:P10)","v":0}]
[null,"SAMLET VURDERING (Jfr. Eksamensveiledning 2015 med kjennetegn på måloppnåelse)"]
[null,"Kompetanse",null,null,2,"3/4","5/6",null,"Karakterforslag"]
[null,"Begreper/ferdigheter",null,null,null,null,null,null,"Eget karakterforslag"]
[null,"Problemløsning",null,null,null,null,null,null,"Medsensors forslag"]
[null,"Kommunikasjon",null,null,null,null,null,null,"Endelig karakter"]
[null,"Kommentarer:"]

{"sheet":"K (12)","index":12,"n_rows":16,"n_cols":29,"rows_kept":16,"cut":false,"hidden":false,"merged":[[14,1,14,3],[15,3,20,28],[0,1,0,24],[0,25,0,28],[4,2,6,2],[11,1,11,3],[12,1,12,3],[13,1,13,3]]}
[null,"VURDERINGSSKJEMA for sentralt gitt skriftlig eksamen i REA3026 Matematikk S1",null,null,null,null,null,null,null,null,null,null,null,null,null,null,null,null,null,null,null,null,null,null,null,"Våren 2015"]
[]
[null,"Fagkode:","REA3026",null,"Fagnavn:",null,"Matematikk S1",null,null,null,"Skole:",null,null,null,null,null,null,null,"Gruppe:",null,null,null,null,null,"Sensor:"]
[]
[null,"Kand.nr:","Del 1","Oppgave","1a","1b","2a","2b","3a","3b","4a","4b","4c","4d","5a","5b","6a","6b","7a","7b","7c","8a","8b",9,null,null,null,"SUM \nDEL 1"]
[null,null,null,"Poeng*",1,2,1,2,2,2,1,2,2,2,2,2,1,2,2,2,2,2,2,2,null,null,null,{"$f":"SUM(E6:Y6)","v":36},"TOTALT"]
[null,null,null,"Sensors\npoeng",null,null,null,null,null,null,null,null,null,null,null,null,null,null,null,null,null,null,null,null,null,null,null,{"$f":"SUM(E7:X7)","v":0},{"$f":"AB7+AB10","v":0}]
[null,null,"Del 2","Oppgave","1a","1b","1c","2a","2b","2c","3a","3b","3c","4a","4b","4c",null,null,null,null,null,null,null,null,null,null,null,"SUM \nDEL 2","AV"]
[null,null,null,"Poeng*",2,2,2,2,2,2,2,2,2,2,2,2,null,null,null,null,null,null,null,null,null,null,null,{"$f":"SUM(E9:Y9)","v":24},{"$f":"AB6+AB9","v":60}]
[null,null,null,"Sensors\npoeng",null,null,null,null,null,null,null,null,null,null,null,null,null,null,null,null,null,null,null,null,null,null,null,{"$f":"SUM(E10:P10)","v":0}]
[null,"SAMLET VURDERING (Jfr. Eksamensveiledning 2015 med kjennetegn på måloppnåelse)"]
[null,"Kompetanse",null,null,2,"3/4","5/6",null,"Karakterforslag"]
[null,"Begreper/ferdigheter",null,null,null,null,null,null,"Eget karakterforslag"]
[null,"Problemløsning",null,null,null,null,null,null,"Medsensors forslag"]
[null,"Kommunikasjon",null,null,null,null,null,null,"Endelig karakter"]
[null,"Kommentarer:"]

{"sheet":"K (13)","index":13,"n_rows":16,"n_cols":29,"rows_kept":16,"cut":false,"hidden":false,"merged":[[14,1,14,3],[15,3,20,28],[0,1,0,24],[0,25,0,28],[4,2,6,2],[11,1,11,3],[12,1,12,3],[13,1,13,3]]}
[null,"VURDERINGSSKJEMA for sentralt gitt skriftlig eksamen i REA3026 Matematikk S1",null,null,null,null,null,null,null,null,null,null,null,null,null,null,null,null,null,null,null,null,null,null,null,"Våren 2015"]
[]
[null,"Fagkode:","REA3026",null,"Fagnavn:",null,"Matematikk S1",null,null,null,"Skole:",null,null,null,null,null,null,null,"Gruppe:",null,null,null,null,null,"Sensor:"]
[]
[null,"Kand.nr:","Del 1","Oppgave","1a","1b","2a","2b","3a","3b","4a","4b","4c","4d","5a","5b","6a","6b","7a","7b","7c","8a","8b",9,null,null,null,"SUM \nDEL 1"]
[null,null,null,"Poeng*",1,2,1,2,2,2,1,2,2,2,2,2,1,2,2,2,2,2,2,2,null,null,null,{"$f":"SUM(E6:Y6)","v":36},"TOTALT"]
[null,null,null,"Sensors\npoeng",null,null,null,null,null,null,null,null,null,null,null,null,null,null,null,null,null,null,null,null,null,null,null,{"$f":"SUM(E7:X7)","v":0},{"$f":"AB7+AB10","v":0}]
[null,null,"Del 2","Oppgave","1a","1b","1c","2a","2b","2c","3a","3b","3c","4a","4b","4c",null,null,null,null,null,null,null,null,null,null,null,"SUM \nDEL 2","AV"]
[null,null,null,"Poeng*",2,2,2,2,2,2,2,2,2,2,2,2,null,null,null,null,null,null,null,null,null,null,null,{"$f":"SUM(E9:Y9)","v":24},{"$f":"AB6+AB9","v":60}]
[null,null,null,"Sensors\npoeng",null,null,null,null,null,null,null,null,null,null,null,null,null,null,null,null,null,null,null,null,null,null,null,{"$f":"SUM(E10:P10)","v":0}]
[null,"SAMLET VURDERING (Jfr. Eksamensveiledning 2015 med kjennetegn på måloppnåelse)"]
[null,"Kompetanse",null,null,2,"3/4","5/6",null,"Karakterforslag"]
[null,"Begreper/ferdigheter",null,null,null,null,null,null,"Eget karakterforslag"]
[null,"Problemløsning",null,null,null,null,null,null,"Medsensors forslag"]
[null,"Kommunikasjon",null,null,null,null,null,null,"Endelig karakter"]
[null,"Kommentarer:"]

{"sheet":"K (14)","index":14,"n_rows":16,"n_cols":29,"rows_kept":16,"cut":false,"hidden":false,"merged":[[14,1,14,3],[15,3,20,28],[0,1,0,24],[0,25,0,28],[4,2,6,2],[11,1,11,3],[12,1,12,3],[13,1,13,3]]}
[null,"VURDERINGSSKJEMA for sentralt gitt skriftlig eksamen i REA3026 Matematikk S1",null,null,null,null,null,null,null,null,null,null,null,null,null,null,null,null,null,null,null,null,null,null,null,"Våren 2015"]
[]
[null,"Fagkode:","REA3026",null,"Fagnavn:",null,"Matematikk S1",null,null,null,"Skole:",null,null,null,null,null,null,null,"Gruppe:",null,null,null,null,null,"Sensor:"]
[]
[null,"Kand.nr:","Del 1","Oppgave","1a","1b","2a","2b","3a","3b","4a","4b","4c","4d","5a","5b","6a","6b","7a","7b","7c","8a","8b",9,null,null,null,"SUM \nDEL 1"]
[null,null,null,"Poeng*",1,2,1,2,2,2,1,2,2,2,2,2,1,2,2,2,2,2,2,2,null,null,null,{"$f":"SUM(E6:Y6)","v":36},"TOTALT"]
[null,null,null,"Sensors\npoeng",null,null,null,null,null,null,null,null,null,null,null,null,null,null,null,null,null,null,null,null,null,null,null,{"$f":"SUM(E7:X7)","v":0},{"$f":"AB7+AB10","v":0}]
[null,null,"Del 2","Oppgave","1a","1b","1c","2a","2b","2c","3a","3b","3c","4a","4b","4c",null,null,null,null,null,null,null,null,null,null,null,"SUM \nDEL 2","AV"]
[null,null,null,"Poeng*",2,2,2,2,2,2,2,2,2,2,2,2,null,null,null,null,null,null,null,null,null,null,null,{"$f":"SUM(E9:Y9)","v":24},{"$f":"AB6+AB9","v":60}]
[null,null,null,"Sensors\npoeng",null,null,null,null,null,null,null,null,null,null,null,null,null,null,null,null,null,null,null,null,null,null,null,{"$f":"SUM(E10:P10)","v":0}]
[null,"SAMLET VURDERING (Jfr. Eksamensveiledning 2015 med kjennetegn på måloppnåelse)"]
[null,"Kompetanse",null,null,2,"3/4","5/6",null,"Karakterforslag"]
[null,"Begreper/ferdigheter",null,null,null,null,null,null,"Eget karakterforslag"]
[null,"Problemløsning",null,null,null,null,null,null,"Medsensors forslag"]
[null,"Kommunikasjon",null,null,null,null,null,null,"Endelig karakter"]
[null,"Kommentarer:"]

{"sheet":"K (15)","index":15,"n_rows":16,"n_cols":29,"rows_kept":16,"cut":false,"hidden":false,"merged":[[14,1,14,3],[15,3,20,28],[0,1,0,24],[0,25,0,28],[4,2,6,2],[11,1,11,3],[12,1,12,3],[13,1,13,3]]}
[null,"VURDERINGSSKJEMA for sentralt gitt skriftlig eksamen i REA3026 Matematikk S1",null,null,null,null,null,null,null,null,null,null,null,null,null,null,null,null,null,null,null,null,null,null,null,"Våren 2015"]
[]
[null,"Fagkode:","REA3026",null,"Fagnavn:",null,"Matematikk S1",null,null,null,"Skole:",null,null,null,null,null,null,null,"Gruppe:",null,null,null,null,null,"Sensor:"]
[]
[null,"Kand.nr:","Del 1","Oppgave","1a","1b","2a","2b","3a","3b","4a","4b","4c","4d","5a","5b","6a","6b","7a","7b","7c","8a","8b",9,null,null,null,"SUM \nDEL 1"]
[null,null,null,"Poeng*",1,2,1,2,2,2,1,2,2,2,2,2,1,2,2,2,2,2,2,2,null,null,null,{"$f":"SUM(E6:Y6)","v":36},"TOTALT"]
[null,null,null,"Sensors\npoeng",null,null,null,null,null,null,null,null,null,null,null,null,null,null,null,null,null,null,null,null,null,null,null,{"$f":"SUM(E7:X7)","v":0},{"$f":"AB7+AB10","v":0}]
[null,null,"Del 2","Oppgave","1a","1b","1c","2a","2b","2c","3a","3b","3c","4a","4b","4c",null,null,null,null,null,null,null,null,null,null,null,"SUM \nDEL 2","AV"]
[null,null,null,"Poeng*",2,2,2,2,2,2,2,2,2,2,2,2,null,null,null,null,null,null,null,null,null,null,null,{"$f":"SUM(E9:Y9)","v":24},{"$f":"AB6+AB9","v":60}]
[null,null,null,"Sensors\npoeng",null,null,null,null,null,null,null,null,null,null,null,null,null,null,null,null,null,null,null,null,null,null,null,{"$f":"SUM(E10:P10)","v":0}]
[null,"SAMLET VURDERING (Jfr. Eksamensveiledning 2015 med kjennetegn på måloppnåelse)"]
[null,"Kompetanse",null,null,2,"3/4","5/6",null,"Karakterforslag"]
[null,"Begreper/ferdigheter",null,null,null,null,null,null,"Eget karakterforslag"]
[null,"Problemløsning",null,null,null,null,null,null,"Medsensors forslag"]
[null,"Kommunikasjon",null,null,null,null,null,null,"Endelig karakter"]
[null,"Kommentarer:"]

{"sheet":"K (16)","index":16,"n_rows":16,"n_cols":29,"rows_kept":16,"cut":false,"hidden":false,"merged":[[14,1,14,3],[15,3,20,28],[0,1,0,24],[0,25,0,28],[4,2,6,2],[11,1,11,3],[12,1,12,3],[13,1,13,3]]}
[null,"VURDERINGSSKJEMA for sentralt gitt skriftlig eksamen i REA3026 Matematikk S1",null,null,null,null,null,null,null,null,null,null,null,null,null,null,null,null,null,null,null,null,null,null,null,"Våren 2015"]
[]
[null,"Fagkode:","REA3026",null,"Fagnavn:",null,"Matematikk S1",null,null,null,"Skole:",null,null,null,null,null,null,null,"Gruppe:",null,null,null,null,null,"Sensor:"]
[]
[null,"Kand.nr:","Del 1","Oppgave","1a","1b","2a","2b","3a","3b","4a","4b","4c","4d","5a","5b","6a","6b","7a","7b","7c","8a","8b",9,null,null,null,"SUM \nDEL 1"]
[null,null,null,"Poeng*",1,2,1,2,2,2,1,2,2,2,2,2,1,2,2,2,2,2,2,2,null,null,null,{"$f":"SUM(E6:Y6)","v":36},"TOTALT"]
[null,null,null,"Sensors\npoeng",null,null,null,null,null,null,null,null,null,null,null,null,null,null,null,null,null,null,null,null,null,null,null,{"$f":"SUM(E7:X7)","v":0},{"$f":"AB7+AB10","v":0}]
[null,null,"Del 2","Oppgave","1a","1b","1c","2a","2b","2c","3a","3b","3c","4a","4b","4c",null,null,null,null,null,null,null,null,null,null,null,"SUM \nDEL 2","AV"]
[null,null,null,"Poeng*",2,2,2,2,2,2,2,2,2,2,2,2,null,null,null,null,null,null,null,null,null,null,null,{"$f":"SUM(E9:Y9)","v":24},{"$f":"AB6+AB9","v":60}]
[null,null,null,"Sensors\npoeng",null,null,null,null,null,null,null,null,null,null,null,null,null,null,null,null,null,null,null,null,null,null,null,{"$f":"SUM(E10:P10)","v":0}]
[null,"SAMLET VURDERING (Jfr. Eksamensveiledning 2015 med kjennetegn på måloppnåelse)"]
[null,"Kompetanse",null,null,2,"3/4","5/6",null,"Karakterforslag"]
[null,"Begreper/ferdigheter",null,null,null,null,null,null,"Eget karakterforslag"]
[null,"Problemløsning",null,null,null,null,null,null,"Medsensors forslag"]
[null,"Kommunikasjon",null,null,null,null,null,null,"Endelig karakter"]
[null,"Kommentarer:"]

{"sheet":"K (17)","index":17,"n_rows":16,"n_cols":29,"rows_kept":16,"cut":false,"hidden":false,"merged":[[14,1,14,3],[15,3,20,28],[0,1,0,24],[0,25,0,28],[4,2,6,2],[11,1,11,3],[12,1,12,3],[13,1,13,3]]}
[null,"VURDERINGSSKJEMA for sentralt gitt skriftlig eksamen i REA3026 Matematikk S1",null,null,null,null,null,null,null,null,null,null,null,null,null,null,null,null,null,null,null,null,null,null,null,"Våren 2015"]
[]
[null,"Fagkode:","REA3026",null,"Fagnavn:",null,"Matematikk S1",null,null,null,"Skole:",null,null,null,null,null,null,null,"Gruppe:",null,null,null,null,null,"Sensor:"]
[]
[null,"Kand.nr:","Del 1","Oppgave","1a","1b","2a","2b","3a","3b","4a","4b","4c","4d","5a","5b","6a","6b","7a","7b","7c","8a","8b",9,null,null,null,"SUM \nDEL 1"]
[null,null,null,"Poeng*",1,2,1,2,2,2,1,2,2,2,2,2,1,2,2,2,2,2,2,2,null,null,null,{"$f":"SUM(E6:Y6)","v":36},"TOTALT"]
[null,null,null,"Sensors\npoeng",null,null,null,null,null,null,null,null,null,null,null,null,null,null,null,null,null,null,null,null,null,null,null,{"$f":"SUM(E7:X7)","v":0},{"$f":"AB7+AB10","v":0}]
[null,null,"Del 2","Oppgave","1a","1b","1c","2a","2b","2c","3a","3b","3c","4a","4b","4c",null,null,null,null,null,null,null,null,null,null,null,"SUM \nDEL 2","AV"]
[null,null,null,"Poeng*",2,2,2,2,2,2,2,2,2,2,2,2,null,null,null,null,null,null,null,null,null,null,null,{"$f":"SUM(E9:Y9)","v":24},{"$f":"AB6+AB9","v":60}]
[null,null,null,"Sensors\npoeng",null,null,null,null,null,null,null,null,null,null,null,null,null,null,null,null,null,null,null,null,null,null,null,{"$f":"SUM(E10:P10)","v":0}]
[null,"SAMLET VURDERING (Jfr. Eksamensveiledning 2015 med kjennetegn på måloppnåelse)"]
[null,"Kompetanse",null,null,2,"3/4","5/6",null,"Karakterforslag"]
[null,"Begreper/ferdigheter",null,null,null,null,null,null,"Eget karakterforslag"]
[null,"Problemløsning",null,null,null,null,null,null,"Medsensors forslag"]
[null,"Kommunikasjon",null,null,null,null,null,null,"Endelig karakter"]
[null,"Kommentarer:"]

{"sheet":"K (18)","index":18,"n_rows":16,"n_cols":29,"rows_kept":16,"cut":false,"hidden":false,"merged":[[14,1,14,3],[15,3,20,28],[0,1,0,24],[0,25,0,28],[4,2,6,2],[11,1,11,3],[12,1,12,3],[13,1,13,3]]}
[null,"VURDERINGSSKJEMA for sentralt gitt skriftlig eksamen i REA3026 Matematikk S1",null,null,null,null,null,null,null,null,null,null,null,null,null,null,null,null,null,null,null,null,null,null,null,"Våren 2015"]
[]
[null,"Fagkode:","REA3026",null,"Fagnavn:",null,"Matematikk S1",null,null,null,"Skole:",null,null,null,null,null,null,null,"Gruppe:",null,null,null,null,null,"Sensor:"]
[]
[null,"Kand.nr:","Del 1","Oppgave","1a","1b","2a","2b","3a","3b","4a","4b","4c","4d","5a","5b","6a","6b","7a","7b","7c","8a","8b",9,null,null,null,"SUM \nDEL 1"]
[null,null,null,"Poeng*",1,2,1,2,2,2,1,2,2,2,2,2,1,2,2,2,2,2,2,2,null,null,null,{"$f":"SUM(E6:Y6)","v":36},"TOTALT"]
[null,null,null,"Sensors\npoeng",null,null,null,null,null,null,null,null,null,null,null,null,null,null,null,null,null,null,null,null,null,null,null,{"$f":"SUM(E7:X7)","v":0},{"$f":"AB7+AB10","v":0}]
[null,null,"Del 2","Oppgave","1a","1b","1c","2a","2b","2c","3a","3b","3c","4a","4b","4c",null,null,null,null,null,null,null,null,null,null,null,"SUM \nDEL 2","AV"]
[null,null,null,"Poeng*",2,2,2,2,2,2,2,2,2,2,2,2,null,null,null,null,null,null,null,null,null,null,null,{"$f":"SUM(E9:Y9)","v":24},{"$f":"AB6+AB9","v":60}]
[null,null,null,"Sensors\npoeng",null,null,null,null,null,null,null,null,null,null,null,null,null,null,null,null,null,null,null,null,null,null,null,{"$f":"SUM(E10:P10)","v":0}]
[null,"SAMLET VURDERING (Jfr. Eksamensveiledning 2015 med kjennetegn på måloppnåelse)"]
[null,"Kompetanse",null,null,2,"3/4","5/6",null,"Karakterforslag"]
[null,"Begreper/ferdigheter",null,null,null,null,null,null,"Eget karakterforslag"]
[null,"Problemløsning",null,null,null,null,null,null,"Medsensors forslag"]
[null,"Kommunikasjon",null,null,null,null,null,null,"Endelig karakter"]
[null,"Kommentarer:"]

{"sheet":"K (19)","index":19,"n_rows":16,"n_cols":29,"rows_kept":16,"cut":false,"hidden":false,"merged":[[14,1,14,3],[15,3,20,28],[0,1,0,24],[0,25,0,28],[4,2,6,2],[11,1,11,3],[12,1,12,3],[13,1,13,3]]}
[null,"VURDERINGSSKJEMA for sentralt gitt skriftlig eksamen i REA3026 Matematikk S1",null,null,null,null,null,null,null,null,null,null,null,null,null,null,null,null,null,null,null,null,null,null,null,"Våren 2015"]
[]
[null,"Fagkode:","REA3026",null,"Fagnavn:",null,"Matematikk S1",null,null,null,"Skole:",null,null,null,null,null,null,null,"Gruppe:",null,null,null,null,null,"Sensor:"]
[]
[null,"Kand.nr:","Del 1","Oppgave","1a","1b","2a","2b","3a","3b","4a","4b","4c","4d","5a","5b","6a","6b","7a","7b","7c","8a","8b",9,null,null,null,"SUM \nDEL 1"]
[null,null,null,"Poeng*",1,2,1,2,2,2,1,2,2,2,2,2,1,2,2,2,2,2,2,2,null,null,null,{"$f":"SUM(E6:Y6)","v":36},"TOTALT"]
[null,null,null,"Sensors\npoeng",null,null,null,null,null,null,null,null,null,null,null,null,null,null,null,null,null,null,null,null,null,null,null,{"$f":"SUM(E7:X7)","v":0},{"$f":"AB7+AB10","v":0}]
[null,null,"Del 2","Oppgave","1a","1b","1c","2a","2b","2c","3a","3b","3c","4a","4b","4c",null,null,null,null,null,null,null,null,null,null,null,"SUM \nDEL 2","AV"]
[null,null,null,"Poeng*",2,2,2,2,2,2,2,2,2,2,2,2,null,null,null,null,null,null,null,null,null,null,null,{"$f":"SUM(E9:Y9)","v":24},{"$f":"AB6+AB9","v":60}]
[null,null,null,"Sensors\npoeng",null,null,null,null,null,null,null,null,null,null,null,null,null,null,null,null,null,null,null,null,null,null,null,{"$f":"SUM(E10:P10)","v":0}]
[null,"SAMLET VURDERING (Jfr. Eksamensveiledning 2015 med kjennetegn på måloppnåelse)"]
[null,"Kompetanse",null,null,2,"3/4","5/6",null,"Karakterforslag"]
[null,"Begreper/ferdigheter",null,null,null,null,null,null,"Eget karakterforslag"]
[null,"Problemløsning",null,null,null,null,null,null,"Medsensors forslag"]
[null,"Kommunikasjon",null,null,null,null,null,null,"Endelig karakter"]
[null,"Kommentarer:"]

{"sheet":"K (20)","index":20,"n_rows":16,"n_cols":29,"rows_kept":16,"cut":false,"hidden":false,"merged":[[14,1,14,3],[15,3,20,28],[0,1,0,24],[0,25,0,28],[4,2,6,2],[11,1,11,3],[12,1,12,3],[13,1,13,3]]}
[null,"VURDERINGSSKJEMA for sentralt gitt skriftlig eksamen i REA3026 Matematikk S1",null,null,null,null,null,null,null,null,null,null,null,null,null,null,null,null,null,null,null,null,null,null,null,"Våren 2015"]
[]
[null,"Fagkode:","REA3026",null,"Fagnavn:",null,"Matematikk S1",null,null,null,"Skole:",null,null,null,null,null,null,null,"Gruppe:",null,null,null,null,null,"Sensor:"]
[]
[null,"Kand.nr:","Del 1","Oppgave","1a","1b","2a","2b","3a","3b","4a","4b","4c","4d","5a","5b","6a","6b","7a","7b","7c","8a","8b",9,null,null,null,"SUM \nDEL 1"]
[null,null,null,"Poeng*",1,2,1,2,2,2,1,2,2,2,2,2,1,2,2,2,2,2,2,2,null,null,null,{"$f":"SUM(E6:Y6)","v":36},"TOTALT"]
[null,null,null,"Sensors\npoeng",null,null,null,null,null,null,null,null,null,null,null,null,null,null,null,null,null,null,null,null,null,null,null,{"$f":"SUM(E7:X7)","v":0},{"$f":"AB7+AB10","v":0}]
[null,null,"Del 2","Oppgave","1a","1b","1c","2a","2b","2c","3a","3b","3c","4a","4b","4c",null,null,null,null,null,null,null,null,null,null,null,"SUM \nDEL 2","AV"]
[null,null,null,"Poeng*",2,2,2,2,2,2,2,2,2,2,2,2,null,null,null,null,null,null,null,null,null,null,null,{"$f":"SUM(E9:Y9)","v":24},{"$f":"AB6+AB9","v":60}]
[null,null,null,"Sensors\npoeng",null,null,null,null,null,null,null,null,null,null,null,null,null,null,null,null,null,null,null,null,null,null,null,{"$f":"SUM(E10:P10)","v":0}]
[null,"SAMLET VURDERING (Jfr. Eksamensveiledning 2015 med kjennetegn på måloppnåelse)"]
[null,"Kompetanse",null,null,2,"3/4","5/6",null,"Karakterforslag"]
[null,"Begreper/ferdigheter",null,null,null,null,null,null,"Eget karakterforslag"]
[null,"Problemløsning",null,null,null,null,null,null,"Medsensors forslag"]
[null,"Kommunikasjon",null,null,null,null,null,null,"Endelig karakter"]
[null,"Kommentarer:"]

{"sheet":"K (21)","index":21,"n_rows":16,"n_cols":29,"rows_kept":16,"cut":false,"hidden":false,"merged":[[14,1,14,3],[15,3,20,28],[0,1,0,24],[0,25,0,28],[4,2,6,2],[11,1,11,3],[12,1,12,3],[13,1,13,3]]}
[null,"VURDERINGSSKJEMA for sentralt gitt skriftlig eksamen i REA3026 Matematikk S1",null,null,null,null,null,null,null,null,null,null,null,null,null,null,null,null,null,null,null,null,null,null,null,"Våren 2015"]
[]
[null,"Fagkode:","REA3026",null,"Fagnavn:",null,"Matematikk S1",null,null,null,"Skole:",null,null,null,null,null,null,null,"Gruppe:",null,null,null,null,null,"Sensor:"]
[]
[null,"Kand.nr:","Del 1","Oppgave","1a","1b","2a","2b","3a","3b","4a","4b","4c","4d","5a","5b","6a","6b","7a","7b","7c","8a","8b",9,null,null,null,"SUM \nDEL 1"]
[null,null,null,"Poeng*",1,2,1,2,2,2,1,2,2,2,2,2,1,2,2,2,2,2,2,2,null,null,null,{"$f":"SUM(E6:Y6)","v":36},"TOTALT"]
[null,null,null,"Sensors\npoeng",null,null,null,null,null,null,null,null,null,null,null,null,null,null,null,null,null,null,null,null,null,null,null,{"$f":"SUM(E7:X7)","v":0},{"$f":"AB7+AB10","v":0}]
[null,null,"Del 2","Oppgave","1a","1b","1c","2a","2b","2c","3a","3b","3c","4a","4b","4c",null,null,null,null,null,null,null,null,null,null,null,"SUM \nDEL 2","AV"]
[null,null,null,"Poeng*",2,2,2,2,2,2,2,2,2,2,2,2,null,null,null,null,null,null,null,null,null,null,null,{"$f":"SUM(E9:Y9)","v":24},{"$f":"AB6+AB9","v":60}]
[null,null,null,"Sensors\npoeng",null,null,null,null,null,null,null,null,null,null,null,null,null,null,null,null,null,null,null,null,null,null,null,{"$f":"SUM(E10:P10)","v":0}]
[null,"SAMLET VURDERING (Jfr. Eksamensveiledning 2015 med kjennetegn på måloppnåelse)"]
[null,"Kompetanse",null,null,2,"3/4","5/6",null,"Karakterforslag"]
[null,"Begreper/ferdigheter",null,null,null,null,null,null,"Eget karakterforslag"]
[null,"Problemløsning",null,null,null,null,null,null,"Medsensors forslag"]
[null,"Kommunikasjon",null,null,null,null,null,null,"Endelig karakter"]
[null,"Kommentarer:"]

{"sheet":"K (22)","index":22,"n_rows":16,"n_cols":29,"rows_kept":16,"cut":false,"hidden":false,"merged":[[14,1,14,3],[15,3,20,28],[0,1,0,24],[0,25,0,28],[4,2,6,2],[11,1,11,3],[12,1,12,3],[13,1,13,3]]}
[null,"VURDERINGSSKJEMA for sentralt gitt skriftlig eksamen i REA3026 Matematikk S1",null,null,null,null,null,null,null,null,null,null,null,null,null,null,null,null,null,null,null,null,null,null,null,"Våren 2015"]
[]
[null,"Fagkode:","REA3026",null,"Fagnavn:",null,"Matematikk S1",null,null,null,"Skole:",null,null,null,null,null,null,null,"Gruppe:",null,null,null,null,null,"Sensor:"]
[]
[null,"Kand.nr:","Del 1","Oppgave","1a","1b","2a","2b","3a","3b","4a","4b","4c","4d","5a","5b","6a","6b","7a","7b","7c","8a","8b",9,null,null,null,"SUM \nDEL 1"]
[null,null,null,"Poeng*",1,2,1,2,2,2,1,2,2,2,2,2,1,2,2,2,2,2,2,2,null,null,null,{"$f":"SUM(E6:Y6)","v":36},"TOTALT"]
[null,null,null,"Sensors\npoeng",null,null,null,null,null,null,null,null,null,null,null,null,null,null,null,null,null,null,null,null,null,null,null,{"$f":"SUM(E7:X7)","v":0},{"$f":"AB7+AB10","v":0}]
[null,null,"Del 2","Oppgave","1a","1b","1c","2a","2b","2c","3a","3b","3c","4a","4b","4c",null,null,null,null,null,null,null,null,null,null,null,"SUM \nDEL 2","AV"]
[null,null,null,"Poeng*",2,2,2,2,2,2,2,2,2,2,2,2,null,null,null,null,null,null,null,null,null,null,null,{"$f":"SUM(E9:Y9)","v":24},{"$f":"AB6+AB9","v":60}]
[null,null,null,"Sensors\npoeng",null,null,null,null,null,null,null,null,null,null,null,null,null,null,null,null,null,null,null,null,null,null,null,{"$f":"SUM(E10:P10)","v":0}]
[null,"SAMLET VURDERING (Jfr. Eksamensveiledning 2015 med kjennetegn på måloppnåelse)"]
[null,"Kompetanse",null,null,2,"3/4","5/6",null,"Karakterforslag"]
[null,"Begreper/ferdigheter",null,null,null,null,null,null,"Eget karakterforslag"]
[null,"Problemløsning",null,null,null,null,null,null,"Medsensors forslag"]
[null,"Kommunikasjon",null,null,null,null,null,null,"Endelig karakter"]
[null,"Kommentarer:"]

{"sheet":"K (23)","index":23,"n_rows":16,"n_cols":29,"rows_kept":16,"cut":false,"hidden":false,"merged":[[14,1,14,3],[15,3,20,28],[0,1,0,24],[0,25,0,28],[4,2,6,2],[11,1,11,3],[12,1,12,3],[13,1,13,3]]}
[null,"VURDERINGSSKJEMA for sentralt gitt skriftlig eksamen i REA3026 Matematikk S1",null,null,null,null,null,null,null,null,null,null,null,null,null,null,null,null,null,null,null,null,null,null,null,"Våren 2015"]
[]
[null,"Fagkode:","REA3026",null,"Fagnavn:",null,"Matematikk S1",null,null,null,"Skole:",null,null,null,null,null,null,null,"Gruppe:",null,null,null,null,null,"Sensor:"]
[]
[null,"Kand.nr:","Del 1","Oppgave","1a","1b","2a","2b","3a","3b","4a","4b","4c","4d","5a","5b","6a","6b","7a","7b","7c","8a","8b",9,null,null,null,"SUM \nDEL 1"]
[null,null,null,"Poeng*",1,2,1,2,2,2,1,2,2,2,2,2,1,2,2,2,2,2,2,2,null,null,null,{"$f":"SUM(E6:Y6)","v":36},"TOTALT"]
[null,null,null,"Sensors\npoeng",null,null,null,null,null,null,null,null,null,null,null,null,null,null,null,null,null,null,null,null,null,null,null,{"$f":"SUM(E7:X7)","v":0},{"$f":"AB7+AB10","v":0}]
[null,null,"Del 2","Oppgave","1a","1b","1c","2a","2b","2c","3a","3b","3c","4a","4b","4c",null,null,null,null,null,null,null,null,null,null,null,"SUM \nDEL 2","AV"]
[null,null,null,"Poeng*",2,2,2,2,2,2,2,2,2,2,2,2,null,null,null,null,null,null,null,null,null,null,null,{"$f":"SUM(E9:Y9)","v":24},{"$f":"AB6+AB9","v":60}]
[null,null,null,"Sensors\npoeng",null,null,null,null,null,null,null,null,null,null,null,null,null,null,null,null,null,null,null,null,null,null,null,{"$f":"SUM(E10:P10)","v":0}]
[null,"SAMLET VURDERING (Jfr. Eksamensveiledning 2015 med kjennetegn på måloppnåelse)"]
[null,"Kompetanse",null,null,2,"3/4","5/6",null,"Karakterforslag"]
[null,"Begreper/ferdigheter",null,null,null,null,null,null,"Eget karakterforslag"]
[null,"Problemløsning",null,null,null,null,null,null,"Medsensors forslag"]
[null,"Kommunikasjon",null,null,null,null,null,null,"Endelig karakter"]
[null,"Kommentarer:"]

{"sheet":"K (24)","index":24,"n_rows":16,"n_cols":29,"rows_kept":16,"cut":false,"hidden":false,"merged":[[14,1,14,3],[15,3,20,28],[0,1,0,24],[0,25,0,28],[4,2,6,2],[11,1,11,3],[12,1,12,3],[13,1,13,3]]}
[null,"VURDERINGSSKJEMA for sentralt gitt skriftlig eksamen i REA3026 Matematikk S1",null,null,null,null,null,null,null,null,null,null,null,null,null,null,null,null,null,null,null,null,null,null,null,"Våren 2015"]
[]
[null,"Fagkode:","REA3026",null,"Fagnavn:",null,"Matematikk S1",null,null,null,"Skole:",null,null,null,null,null,null,null,"Gruppe:",null,null,null,null,null,"Sensor:"]
[]
[null,"Kand.nr:","Del 1","Oppgave","1a","1b","2a","2b","3a","3b","4a","4b","4c","4d","5a","5b","6a","6b","7a","7b","7c","8a","8b",9,null,null,null,"SUM \nDEL 1"]
[null,null,null,"Poeng*",1,2,1,2,2,2,1,2,2,2,2,2,1,2,2,2,2,2,2,2,null,null,null,{"$f":"SUM(E6:Y6)","v":36},"TOTALT"]
[null,null,null,"Sensors\npoeng",null,null,null,null,null,null,null,null,null,null,null,null,null,null,null,null,null,null,null,null,null,null,null,{"$f":"SUM(E7:X7)","v":0},{"$f":"AB7+AB10","v":0}]
[null,null,"Del 2","Oppgave","1a","1b","1c","2a","2b","2c","3a","3b","3c","4a","4b","4c",null,null,null,null,null,null,null,null,null,null,null,"SUM \nDEL 2","AV"]
[null,null,null,"Poeng*",2,2,2,2,2,2,2,2,2,2,2,2,null,null,null,null,null,null,null,null,null,null,null,{"$f":"SUM(E9:Y9)","v":24},{"$f":"AB6+AB9","v":60}]
[null,null,null,"Sensors\npoeng",null,null,null,null,null,null,null,null,null,null,null,null,null,null,null,null,null,null,null,null,null,null,null,{"$f":"SUM(E10:P10)","v":0}]
[null,"SAMLET VURDERING (Jfr. Eksamensveiledning 2015 med kjennetegn på måloppnåelse)"]
[null,"Kompetanse",null,null,2,"3/4","5/6",null,"Karakterforslag"]
[null,"Begreper/ferdigheter",null,null,null,null,null,null,"Eget karakterforslag"]
[null,"Problemløsning",null,null,null,null,null,null,"Medsensors forslag"]
[null,"Kommunikasjon",null,null,null,null,null,null,"Endelig karakter"]
[null,"Kommentarer:"]

{"sheet":"K (25)","index":25,"n_rows":16,"n_cols":29,"rows_kept":16,"cut":false,"hidden":false,"merged":[[14,1,14,3],[15,3,20,28],[0,1,0,24],[0,25,0,28],[4,2,6,2],[11,1,11,3],[12,1,12,3],[13,1,13,3]]}
[null,"VURDERINGSSKJEMA for sentralt gitt skriftlig eksamen i REA3026 Matematikk S1",null,null,null,null,null,null,null,null,null,null,null,null,null,null,null,null,null,null,null,null,null,null,null,"Våren 2015"]
[]
[null,"Fagkode:","REA3026",null,"Fagnavn:",null,"Matematikk S1",null,null,null,"Skole:",null,null,null,null,null,null,null,"Gruppe:",null,null,null,null,null,"Sensor:"]
[]
[null,"Kand.nr:","Del 1","Oppgave","1a","1b","2a","2b","3a","3b","4a","4b","4c","4d","5a","5b","6a","6b","7a","7b","7c","8a","8b",9,null,null,null,"SUM \nDEL 1"]
[null,null,null,"Poeng*",1,2,1,2,2,2,1,2,2,2,2,2,1,2,2,2,2,2,2,2,null,null,null,{"$f":"SUM(E6:Y6)","v":36},"TOTALT"]
[null,null,null,"Sensors\npoeng",null,null,null,null,null,null,null,null,null,null,null,null,null,null,null,null,null,null,null,null,null,null,null,{"$f":"SUM(E7:X7)","v":0},{"$f":"AB7+AB10","v":0}]
[null,null,"Del 2","Oppgave","1a","1b","1c","2a","2b","2c","3a","3b","3c","4a","4b","4c",null,null,null,null,null,null,null,null,null,null,null,"SUM \nDEL 2","AV"]
[null,null,null,"Poeng*",2,2,2,2,2,2,2,2,2,2,2,2,null,null,null,null,null,null,null,null,null,null,null,{"$f":"SUM(E9:Y9)","v":24},{"$f":"AB6+AB9","v":60}]
[null,null,null,"Sensors\npoeng",null,null,null,null,null,null,null,null,null,null,null,null,null,null,null,null,null,null,null,null,null,null,null,{"$f":"SUM(E10:P10)","v":0}]
[null,"SAMLET VURDERING (Jfr. Eksamensveiledning 2015 med kjennetegn på måloppnåelse)"]
[null,"Kompetanse",null,null,2,"3/4","5/6",null,"Karakterforslag"]
[null,"Begreper/ferdigheter",null,null,null,null,null,null,"Eget karakterforslag"]
[null,"Problemløsning",null,null,null,null,null,null,"Medsensors forslag"]
[null,"Kommunikasjon",null,null,null,null,null,null,"Endelig karakter"]
[null,"Kommentarer:"]

{"sheet":"K (26)","index":26,"n_rows":16,"n_cols":29,"rows_kept":16,"cut":false,"hidden":false,"merged":[[14,1,14,3],[15,3,20,28],[0,1,0,24],[0,25,0,28],[4,2,6,2],[11,1,11,3],[12,1,12,3],[13,1,13,3]]}
[null,"VURDERINGSSKJEMA for sentralt gitt skriftlig eksamen i REA3026 Matematikk S1",null,null,null,null,null,null,null,null,null,null,null,null,null,null,null,null,null,null,null,null,null,null,null,"Våren 2015"]
[]
[null,"Fagkode:","REA3026",null,"Fagnavn:",null,"Matematikk S1",null,null,null,"Skole:",null,null,null,null,null,null,null,"Gruppe:",null,null,null,null,null,"Sensor:"]
[]
[null,"Kand.nr:","Del 1","Oppgave","1a","1b","2a","2b","3a","3b","4a","4b","4c","4d","5a","5b","6a","6b","7a","7b","7c","8a","8b",9,null,null,null,"SUM \nDEL 1"]
[null,null,null,"Poeng*",1,2,1,2,2,2,1,2,2,2,2,2,1,2,2,2,2,2,2,2,null,null,null,{"$f":"SUM(E6:Y6)","v":36},"TOTALT"]
[null,null,null,"Sensors\npoeng",null,null,null,null,null,null,null,null,null,null,null,null,null,null,null,null,null,null,null,null,null,null,null,{"$f":"SUM(E7:X7)","v":0},{"$f":"AB7+AB10","v":0}]
[null,null,"Del 2","Oppgave","1a","1b","1c","2a","2b","2c","3a","3b","3c","4a","4b","4c",null,null,null,null,null,null,null,null,null,null,null,"SUM \nDEL 2","AV"]
[null,null,null,"Poeng*",2,2,2,2,2,2,2,2,2,2,2,2,null,null,null,null,null,null,null,null,null,null,null,{"$f":"SUM(E9:Y9)","v":24},{"$f":"AB6+AB9","v":60}]
[null,null,null,"Sensors\npoeng",null,null,null,null,null,null,null,null,null,null,null,null,null,null,null,null,null,null,null,null,null,null,null,{"$f":"SUM(E10:P10)","v":0}]
[null,"SAMLET VURDERING (Jfr. Eksamensveiledning 2015 med kjennetegn på måloppnåelse)"]
[null,"Kompetanse",null,null,2,"3/4","5/6",null,"Karakterforslag"]
[null,"Begreper/ferdigheter",null,null,null,null,null,null,"Eget karakterforslag"]
[null,"Problemløsning",null,null,null,null,null,null,"Medsensors forslag"]
[null,"Kommunikasjon",null,null,null,null,null,null,"Endelig karakter"]
[null,"Kommentarer:"]

{"sheet":"K (27)","index":27,"n_rows":16,"n_cols":29,"rows_kept":16,"cut":false,"hidden":false,"merged":[[14,1,14,3],[15,3,20,28],[0,1,0,24],[0,25,0,28],[4,2,6,2],[11,1,11,3],[12,1,12,3],[13,1,13,3]]}
[null,"VURDERINGSSKJEMA for sentralt gitt skriftlig eksamen i REA3026 Matematikk S1",null,null,null,null,null,null,null,null,null,null,null,null,null,null,null,null,null,null,null,null,null,null,null,"Våren 2015"]
[]
[null,"Fagkode:","REA3026",null,"Fagnavn:",null,"Matematikk S1",null,null,null,"Skole:",null,null,null,null,null,null,null,"Gruppe:",null,null,null,null,null,"Sensor:"]
[]
[null,"Kand.nr:","Del 1","Oppgave","1a","1b","2a","2b","3a","3b","4a","4b","4c","4d","5a","5b","6a","6b","7a","7b","7c","8a","8b",9,null,null,null,"SUM \nDEL 1"]
[null,null,null,"Poeng*",1,2,1,2,2,2,1,2,2,2,2,2,1,2,2,2,2,2,2,2,null,null,null,{"$f":"SUM(E6:Y6)","v":36},"TOTALT"]
[null,null,null,"Sensors\npoeng",null,null,null,null,null,null,null,null,null,null,null,null,null,null,null,null,null,null,null,null,null,null,null,{"$f":"SUM(E7:X7)","v":0},{"$f":"AB7+AB10","v":0}]
[null,null,"Del 2","Oppgave","1a","1b","1c","2a","2b","2c","3a","3b","3c","4a","4b","4c",null,null,null,null,null,null,null,null,null,null,null,"SUM \nDEL 2","AV"]
[null,null,null,"Poeng*",2,2,2,2,2,2,2,2,2,2,2,2,null,null,null,null,null,null,null,null,null,null,null,{"$f":"SUM(E9:Y9)","v":24},{"$f":"AB6+AB9","v":60}]
[null,null,null,"Sensors\npoeng",null,null,null,null,null,null,null,null,null,null,null,null,null,null,null,null,null,null,null,null,null,null,null,{"$f":"SUM(E10:P10)","v":0}]
[null,"SAMLET VURDERING (Jfr. Eksamensveiledning 2015 med kjennetegn på måloppnåelse)"]
[null,"Kompetanse",null,null,2,"3/4","5/6",null,"Karakterforslag"]
[null,"Begreper/ferdigheter",null,null,null,null,null,null,"Eget karakterforslag"]
[null,"Problemløsning",null,null,null,null,null,null,"Medsensors forslag"]
[null,"Kommunikasjon",null,null,null,null,null,null,"Endelig karakter"]
[null,"Kommentarer:"]

{"sheet":"K (28)","index":28,"n_rows":16,"n_cols":29,"rows_kept":16,"cut":false,"hidden":false,"merged":[[14,1,14,3],[15,3,20,28],[0,1,0,24],[0,25,0,28],[4,2,6,2],[11,1,11,3],[12,1,12,3],[13,1,13,3]]}
[null,"VURDERINGSSKJEMA for sentralt gitt skriftlig eksamen i REA3026 Matematikk S1",null,null,null,null,null,null,null,null,null,null,null,null,null,null,null,null,null,null,null,null,null,null,null,"Våren 2015"]
[]
[null,"Fagkode:","REA3026",null,"Fagnavn:",null,"Matematikk S1",null,null,null,"Skole:",null,null,null,null,null,null,null,"Gruppe:",null,null,null,null,null,"Sensor:"]
[]
[null,"Kand.nr:","Del 1","Oppgave","1a","1b","2a","2b","3a","3b","4a","4b","4c","4d","5a","5b","6a","6b","7a","7b","7c","8a","8b",9,null,null,null,"SUM \nDEL 1"]
[null,null,null,"Poeng*",1,2,1,2,2,2,1,2,2,2,2,2,1,2,2,2,2,2,2,2,null,null,null,{"$f":"SUM(E6:Y6)","v":36},"TOTALT"]
[null,null,null,"Sensors\npoeng",null,null,null,null,null,null,null,null,null,null,null,null,null,null,null,null,null,null,null,null,null,null,null,{"$f":"SUM(E7:X7)","v":0},{"$f":"AB7+AB10","v":0}]
[null,null,"Del 2","Oppgave","1a","1b","1c","2a","2b","2c","3a","3b","3c","4a","4b","4c",null,null,null,null,null,null,null,null,null,null,null,"SUM \nDEL 2","AV"]
[null,null,null,"Poeng*",2,2,2,2,2,2,2,2,2,2,2,2,null,null,null,null,null,null,null,null,null,null,null,{"$f":"SUM(E9:Y9)","v":24},{"$f":"AB6+AB9","v":60}]
[null,null,null,"Sensors\npoeng",null,null,null,null,null,null,null,null,null,null,null,null,null,null,null,null,null,null,null,null,null,null,null,{"$f":"SUM(E10:P10)","v":0}]
[null,"SAMLET VURDERING (Jfr. Eksamensveiledning 2015 med kjennetegn på måloppnåelse)"]
[null,"Kompetanse",null,null,2,"3/4","5/6",null,"Karakterforslag"]
[null,"Begreper/ferdigheter",null,null,null,null,null,null,"Eget karakterforslag"]
[null,"Problemløsning",null,null,null,null,null,null,"Medsensors forslag"]
[null,"Kommunikasjon",null,null,null,null,null,null,"Endelig karakter"]
[null,"Kommentarer:"]

{"sheet":"K (29)","index":29,"n_rows":16,"n_cols":29,"rows_kept":16,"cut":false,"hidden":false,"merged":[[14,1,14,3],[15,3,20,28],[0,1,0,24],[0,25,0,28],[4,2,6,2],[11,1,11,3],[12,1,12,3],[13,1,13,3]]}
[null,"VURDERINGSSKJEMA for sentralt gitt skriftlig eksamen i REA3026 Matematikk S1",null,null,null,null,null,null,null,null,null,null,null,null,null,null,null,null,null,null,null,null,null,null,null,"Våren 2015"]
[]
[null,"Fagkode:","REA3026",null,"Fagnavn:",null,"Matematikk S1",null,null,null,"Skole:",null,null,null,null,null,null,null,"Gruppe:",null,null,null,null,null,"Sensor:"]
[]
[null,"Kand.nr:","Del 1","Oppgave","1a","1b","2a","2b","3a","3b","4a","4b","4c","4d","5a","5b","6a","6b","7a","7b","7c","8a","8b",9,null,null,null,"SUM \nDEL 1"]
[null,null,null,"Poeng*",1,2,1,2,2,2,1,2,2,2,2,2,1,2,2,2,2,2,2,2,null,null,null,{"$f":"SUM(E6:Y6)","v":36},"TOTALT"]
[null,null,null,"Sensors\npoeng",null,null,null,null,null,null,null,null,null,null,null,null,null,null,null,null,null,null,null,null,null,null,null,{"$f":"SUM(E7:X7)","v":0},{"$f":"AB7+AB10","v":0}]
[null,null,"Del 2","Oppgave","1a","1b","1c","2a","2b","2c","3a","3b","3c","4a","4b","4c",null,null,null,null,null,null,null,null,null,null,null,"SUM \nDEL 2","AV"]
[null,null,null,"Poeng*",2,2,2,2,2,2,2,2,2,2,2,2,null,null,null,null,null,null,null,null,null,null,null,{"$f":"SUM(E9:Y9)","v":24},{"$f":"AB6+AB9","v":60}]
[null,null,null,"Sensors\npoeng",null,null,null,null,null,null,null,null,null,null,null,null,null,null,null,null,null,null,null,null,null,null,null,{"$f":"SUM(E10:P10)","v":0}]
[null,"SAMLET VURDERING (Jfr. Eksamensveiledning 2015 med kjennetegn på måloppnåelse)"]
[null,"Kompetanse",null,null,2,"3/4","5/6",null,"Karakterforslag"]
[null,"Begreper/ferdigheter",null,null,null,null,null,null,"Eget karakterforslag"]
[null,"Problemløsning",null,null,null,null,null,null,"Medsensors forslag"]
[null,"Kommunikasjon",null,null,null,null,null,null,"Endelig karakter"]
[null,"Kommentarer:"]

{"sheet":"K (30)","index":30,"n_rows":16,"n_cols":29,"rows_kept":16,"cut":false,"hidden":false,"merged":[[14,1,14,3],[15,3,20,28],[0,1,0,24],[0,25,0,28],[4,2,6,2],[11,1,11,3],[12,1,12,3],[13,1,13,3]]}
[null,"VURDERINGSSKJEMA for sentralt gitt skriftlig eksamen i REA3026 Matematikk S1",null,null,null,null,null,null,null,null,null,null,null,null,null,null,null,null,null,null,null,null,null,null,null,"Våren 2015"]
[]
[null,"Fagkode:","REA3026",null,"Fagnavn:",null,"Matematikk S1",null,null,null,"Skole:",null,null,null,null,null,null,null,"Gruppe:",null,null,null,null,null,"Sensor:"]
[]
[null,"Kand.nr:","Del 1","Oppgave","1a","1b","2a","2b","3a","3b","4a","4b","4c","4d","5a","5b","6a","6b","7a","7b","7c","8a","8b",9,null,null,null,"SUM \nDEL 1"]
[null,null,null,"Poeng*",1,2,1,2,2,2,1,2,2,2,2,2,1,2,2,2,2,2,2,2,null,null,null,{"$f":"SUM(E6:Y6)","v":36},"TOTALT"]
[null,null,null,"Sensors\npoeng",null,null,null,null,null,null,null,null,null,null,null,null,null,null,null,null,null,null,null,null,null,null,null,{"$f":"SUM(E7:X7)","v":0},{"$f":"AB7+AB10","v":0}]
[null,null,"Del 2","Oppgave","1a","1b","1c","2a","2b","2c","3a","3b","3c","4a","4b","4c",null,null,null,null,null,null,null,null,null,null,null,"SUM \nDEL 2","AV"]
[null,null,null,"Poeng*",2,2,2,2,2,2,2,2,2,2,2,2,null,null,null,null,null,null,null,null,null,null,null,{"$f":"SUM(E9:Y9)","v":24},{"$f":"AB6+AB9","v":60}]
[null,null,null,"Sensors\npoeng",null,null,null,null,null,null,null,null,null,null,null,null,null,null,null,null,null,null,null,null,null,null,null,{"$f":"SUM(E10:P10)","v":0}]
[null,"SAMLET VURDERING (Jfr. Eksamensveiledning 2015 med kjennetegn på måloppnåelse)"]
[null,"Kompetanse",null,null,2,"3/4","5/6",null,"Karakterforslag"]
[null,"Begreper/ferdigheter",null,null,null,null,null,null,"Eget karakterforslag"]
[null,"Problemløsning",null,null,null,null,null,null,"Medsensors forslag"]
[null,"Kommunikasjon",null,null,null,null,null,null,"Endelig karakter"]
[null,"Kommentarer:"]